bitfinex-derivatives/quotes_ETHF0:USTF0_20250604
["timestamp","ask_amount","ask_price","bid_price","bid_amount"]
[1749009520926,1.66532635,2629.5,2629.3,0.76014]
[1749009521128,0.6611,2629.5,2629.4,17.578]
[1749009521323,2.95196111,2629.5,2629.4,17.578]
[1749009521531,2.95196111,2629.5,2629.4,18.33813]
[1749009521732,1.9481,2629.5,2629.4,18.33813]
[1749009523029,2.95222054,2629.5,2629.4,18.33813]
[1749009523425,2.95222054,2629.5,2629.4,0.76013]
[1749009523926,1.00412054,2629.5,2629.4,0.76013]
[1749009524129,0.00570776,2629.6,2629.5,0.7601]
[1749009524328,1.00991246,2629.6,2629.5,0.7601]
[1749009525327,0.00570776,2629.6,2629.5,0.7601]
[1749009525527,1.01011287,2629.6,2629.5,0.7601]
[1749009529432,0.00570776,2629.6,2629.5,0.7601]
[1749009529732,1.01140056,2629.6,2629.5,0.7601]
[1749009531435,2.26070056,2629.6,2629.5,0.7601]
[1749009531630,2.26070056,2629.6,2629.1,3.21350776]
[1749009531828,2.26070056,2629.6,2629.4,0.76013]
[1749009531829,2.8950928,2629.5,2629.4,0.76013]
[1749009533534,2.89673002,2629.5,2629.4,0.76013]
[1749009536527,2.89673002,2629.5,2629.3,17.575]
[1749009536840,1.00733002,2629.4,2629.3,18.33516]
[1749009539435,1.00733002,2629.4,2629.3,0.76016]
[1749009539642,1.00733002,2629.4,2629.3,22.93016]
[1749009540931,1.8894,2629.5,2629.4,0.76013]
[1749009541135,2.89869856,2629.5,2629.4,0.76013]
[1749009542838,3.65881856,2629.5,2629.2,6.01707]
[1749009543039,2.31479856,2629.4,2629.3,0.76016]
[1749009543241,2.31479856,2629.4,2629.1,3.21350776]
[1749009543550,5.52259856,2629.3,2629.1,0.76591776]
[1749009543841,2.94589856,2629.2,2629.1,0.76591776]
[1749009544043,3.60889856,2629.2,2629.1,0.76591776]
[1749009544739,3.60895871,2629.2,2629.1,0.76591776]
[1749009545449,3.60895871,2629.2,2629.1,0.00570776]
[1749009553845,4.36914871,2629.2,2629.1,0.00570776]
[1749009554252,0.76034,2628.7,2628.2,4.596]
[1749009554551,1.90058,2629.1,2628.2,4.596]
[1749009554552,4.84295871,2628.6,2628.2,5.2569]
[1749009554756,1.00936511,2628.5,2628.2,5.2569]
[1749009555046,1.00936511,2628.4,2628.3,1.37845]
[1749009556153,1.2894,2628.8,2628.5,0.76037]
[1749009556449,1.00890131,2628.7,2628.5,0.76037]
[1749009556649,1.2894,2628.8,2628.6,0.6104]
[1749009556848,1.00857756,2628.7,2628.6,1.37076]
[1749009557248,1.00857756,2628.7,2628.6,5.96676]
[1749009560063,1.00801908,2628.7,2628.6,5.96676]
[1749009560545,1.00801908,2628.7,2628.6,5.2064]
[1749009560950,1.00801908,2628.7,2628.4,0.7604]
[1749009561151,1.61201908,2628.6,2628.4,0.6662]
[1749009561451,0.604,2628.6,2628.5,0.76039]
[1749009561649,1.00798272,2628.6,2628.5,0.76039]
[1749009562355,1.00798272,2628.6,2628.4,1.4266]
[1749009562547,1.00798272,2628.5,2628.4,1.4266]
[1749009563754,1.00798272,2628.5,2628.4,2.7134]
[1749009563948,0.8219,2628.8,2628.7,0.76033]
[1749009564247,0.2095,2628.8,2628.7,0.76033]
[1749009564449,1.21742531,2628.8,2628.7,0.76033]
[1749009565043,1.21740279,2628.8,2628.7,0.76033]
[1749009565648,1.21740279,2628.8,2628.6,0.76035]
[1749009565849,1.00790279,2628.7,2628.6,0.76035]
[1749009568053,1.00797417,2628.7,2628.6,0.76035]
[1749009571263,1.00797417,2628.7,2628.3,3.8258]
[1749009571453,1.00797417,2628.6,2628.4,0.76041]
[1749009571757,1.00797417,2628.5,2628.4,0.76041]
[1749009571962,0.6323,2628.7,2628.3,25.3748]
[1749009572265,1.00839396,2628.6,2628.5,0.76039]
[1749009575960,0.2095,2628.8,2628.6,0.76036]
[1749009576169,1.00901333,2628.7,2628.6,0.76036]
[1749009579766,1.00901333,2628.7,2628.6,1.42556]
[1749009580065,1.00960949,2628.7,2628.6,1.42556]
[1749009580459,1.00960949,2628.7,2628.6,0.76036]
[1749009583965,0.2095,2628.8,2628.5,17.572]
[1749009584159,1.01063486,2628.7,2628.5,17.572]
[1749009584361,1.01063486,2628.6,2628.5,18.33239]
[1749009587455,1.01063486,2628.6,2628.5,0.76039]
[1749009587654,1.01063486,2628.6,2628.4,1.40269]
[1749009587860,2.87993486,2628.5,2628.4,1.40269]
[1749009589263,2.87993486,2628.5,2628.4,18.97269]
[1749009589663,2.87993486,2628.5,2628.4,1.40269]
[1749009589861,2.87993486,2628.5,2628.4,23.56569]
[1749009591064,1.01063486,2628.5,2628.4,23.56569]
[1749009591265,1.01063486,2628.5,2628.4,22.92339]
[1749009592062,0.2095,2628.8,2628.7,0.76033]
[1749009592367,1.22040117,2628.8,2628.7,0.76033]
[1749009596169,1.22019272,2628.8,2628.7,0.76033]
[1749009597770,1.22019272,2628.8,2628.5,0.6458]
[1749009597971,1.01069272,2628.7,2628.6,0.76036]
[1749009598773,1.4453,2628.8,2628.7,0.76033]
[1749009598968,2.45598113,2628.8,2628.7,0.76033]
[1749009599175,2.45595421,2628.8,2628.6,0.76033]
[1749009599365,1.01065421,2628.7,2628.6,0.76033]
[1749009600474,1.01065421,2628.7,2628.6,22.91633]
[1749009600971,1.01065421,2628.7,2628.6,0.76033]
[1749009601178,1.01065421,2628.7,2628.6,22.91633]
[1749009602179,1.01065421,2628.7,2628.6,0.76033]
[1749009602477,1.01065421,2628.7,2628.6,18.32633]
[1749009602680,1.2358,2628.8,2628.7,0.76033]
[1749009602977,2.46112175,2628.8,2628.7,0.76033]
[1749009603179,1.22532175,2628.8,2628.7,0.76033]
[1749009603973,1.22532175,2628.8,2628.7,18.32633]
[1749009604174,1.22532175,2628.8,2628.7,0.76033]
[1749009604377,1.22532175,2628.8,2628.7,22.91533]
[1749009604776,0.2146,2628.8,2628.7,22.91533]
[1749009605085,1.22518727,2628.8,2628.7,22.91533]
[1749009605581,0.2146,2628.8,2628.7,24.12933]
[1749009605773,1.22506882,2628.8,2628.7,24.12933]
[1749009607181,1.22310332,2628.8,2628.7,24.12933]
[1749009608284,1.22310332,2628.8,2628.7,29.12933]
[1749009609085,1.22310332,2628.8,2628.7,0.76033]
[1749009609283,1.22310332,2628.8,2628.7,22.91133]
[1749009611184,1.22272484,2628.8,2628.7,22.91133]
[1749009611780,0.2146,2628.8,2628.7,24.12983]
[1749009615382,0.2146,2628.8,2628.7,29.12983]
[1749009615682,0.20889224,2628.8,2628.7,29.12983]
[1749009616590,0.20889224,2628.8,2628.7,24.12983]
[1749009617990,1.2942,2629.3,2629.1,0.76019]
[1749009618192,1.00793781,2629.2,2629.1,5.34821]
[1749009618385,1.65003781,2629.2,2629.1,5.34821]
[1749009618584,1.65000758,2629.2,2629.1,5.34821]
[1749009618984,0.6421,2629.2,2629.1,5.34821]
[1749009619289,1.65004412,2629.2,2629.1,5.34821]
[1749009620994,1.00794412,2629.2,2629.1,5.34821]
[1749009622395,0.6671,2629.4,2629.3,0.76015]
[1749009622594,1.67511484,2629.4,2629.3,0.76015]
[1749009623088,1.67510387,2629.4,2629.3,0.76015]
[1749009625996,2.95540387,2629.4,2629.3,18.31515]
[1749009626997,2.95542081,2629.4,2629.3,18.31515]
[1749009628997,1.67512081,2629.4,2629.3,18.31515]
[1749009630095,1.00802081,2629.4,2629.3,18.31515]
[1749009630295,1.00802081,2629.4,2629.3,0.76015]
[1749009630595,1.00802081,2629.4,2629.3,18.31415]
[1749009630999,0.6373,2629.5,2629.4,0.76013]
[1749009631200,1.64579886,2629.5,2629.2,3.2078]
[1749009631498,0.6373,2629.5,2629.4,0.76013]
[1749009631698,1.6458243,2629.5,2629.4,0.76013]
[1749009632091,1.6458243,2629.5,2629.4,22.135]
[1749009632299,1.6458243,2629.5,2629.4,22.89513]
[1749009632799,1.6458243,2629.5,2629.4,0.76013]
[1749009632995,1.6458243,2629.5,2629.4,22.89413]
[1749009633600,1.6458243,2629.5,2629.4,0.76013]
[1749009633800,1.6458243,2629.5,2629.3,4.582]
[1749009634102,1.0085243,2629.4,2629.3,5.34216]
[1749009635104,0.6373,2629.5,2629.4,0.76013]
[1749009635404,1.64540478,2629.5,2629.4,0.76013]
[1749009639103,1.00807909,2629.5,2629.4,1.42303]
[1749009640307,1.64747909,2629.5,2629.4,1.42303]
[1749009641300,1.64747909,2629.5,2629.4,0.76013]
[1749009641702,1.64747909,2629.5,2629.4,22.89113]
[1749009642499,1.00807909,2629.5,2629.4,22.89113]
[1749009646811,0.21710776,2629.6,2629.5,0.7601]
[1749009647000,0.21710776,2629.6,2629.5,3.9679]
[1749009647205,0.21710776,2629.6,2629.5,4.6133]
[1749009647504,1.22503512,2629.6,2629.5,22.1593]
[1749009649110,1.22503512,2629.6,2629.5,4.6133]
[1749009649310,1.22503512,2629.6,2629.5,26.7413]
[1749009650907,1.22431221,2629.6,2629.5,26.7413]
[1749009651109,1.22431221,2629.6,2629.5,4.6133]
[1749009651308,1.22431221,2629.6,2629.5,26.0949]
[1749009654817,1.22390203,2629.6,2629.5,26.0949]
[1749009655121,1.22390203,2629.6,2629.5,4.582]
[1749009655718,9.43170203,2629.6,2629.3,17.543]
[1749009655914,3.49899427,2629.5,2629.3,17.543]
[1749009656115,2.24879427,2629.4,2629.3,17.543]
[1749009656323,2.24879427,2629.4,2629.3,18.30315]
[1749009656616,2.24879427,2629.4,2629.1,41.5358]
[1749009656819,1.00656023,2629.3,2629.1,42.91]
[1749009657012,1.00656023,2629.2,2629.1,43.67021]
[1749009657309,1.64396023,2629.2,2629.1,61.21221]
[1749009657713,1.64367782,2629.2,2629.1,61.21221]
[1749009658818,1.64351053,2629.2,2629.1,61.21221]
[1749009659119,1.64351053,2629.2,2629.1,0.76021]
[1749009659320,1.64351053,2629.2,2629.1,18.30221]
[1749009661416,1.64345865,2629.2,2629.1,18.30221]
[1749009665719,0.6374,2629.2,2629.1,18.30221]
[1749009665914,1.63935103,2629.2,2629.1,18.30221]
[1749009668219,1.63935103,2629.2,2629.1,0.76021]
[1749009668424,1.63935103,2629.2,2629.1,18.30021]
[1749009669424,1.63783393,2629.2,2629.1,18.30021]
[1749009670920,1.00043393,2629.2,2629.1,18.30021]
[1749009672228,1.00043393,2629.2,2629.1,22.87521]
[1749009673331,3.42490776,2629.6,2629.3,0.76013]
[1749009673530,2.29472615,2629.5,2629.4,0.76012]
[1749009673730,1.00072615,2629.5,2629.4,0.76012]
[1749009673927,1.00072615,2629.5,2629.2,0.6129]
[1749009674231,1.2366,2629.5,2629.4,0.76012]
[1749009674431,2.23754987,2629.5,2629.4,0.76012]
[1749009676433,1.00094987,2629.5,2629.4,0.76012]
[1749009677232,0.21710776,2629.6,2629.5,0.7601]
[1749009677434,1.2188101,2629.6,2629.5,0.7601]
[1749009677733,4.4266101,2629.6,2629.5,0.7601]
[1749009678332,1.2188101,2629.6,2629.5,0.7601]
[1749009680023,2.49855307,2629.6,2629.5,0.7601]
[1749009681231,2.49878063,2629.6,2629.5,0.7601]
[1749009682728,2.49878063,2629.6,2628.7,3.2078]
[1749009682936,0.7602,2629.2,2628.9,1.38056]
[1749009683128,3.54917287,2629.1,2628.9,0.76026]
[1749009683428,2.99472287,2629.0,2628.7,0.76032]
[1749009683626,2.23447287,2628.9,2628.7,0.76032]
[1749009683823,1.00217287,2628.8,2628.7,0.76032]
[1749009684129,1.00238431,2628.8,2628.7,22.11]
[1749009684434,1.00226936,2628.8,2628.7,22.87033]
[1749009684929,1.3147,2629.1,2628.7,22.11]
[1749009685232,1.3147,2629.1,2628.5,0.06704602]
[1749009685233,1.3147,2629.1,2629.0,0.76024]
[1749009685432,5.52455581,2629.1,2629.0,0.76024]
[1749009686427,2.31675581,2629.1,2629.0,0.76024]
[1749009686829,5.52455581,2629.1,2629.0,0.76024]
[1749009687727,2.31675581,2629.1,2629.0,0.76024]
[1749009688429,1.00205581,2629.1,2629.0,0.76024]
[1749009689031,3.2078,2629.2,2629.1,0.76021]
[1749009689326,4.2086243,2629.2,2629.1,5.33721]
[1749009690030,1.0008243,2629.2,2629.1,5.33721]
[1749009690231,0.00570776,2629.6,2629.5,0.7601]
[1749009690432,0.00570776,2629.6,2629.5,5.3371]
[1749009691032,0.00570776,2629.6,2629.3,3.2078]
[1749009691738,0.76011,2629.5,2629.1,4.577]
[1749009692036,3.2078,2629.3,2629.1,5.33721]
[1749009692236,1.2161,2629.2,2629.1,5.33721]
[1749009692540,1.8349,2629.2,2628.9,17.533]
[1749009692840,1.8349,2629.2,2629.0,0.76022]
[1749009693734,1.8349,2629.2,2629.1,0.76021]
[1749009695929,5.0427,2629.2,2629.1,0.76021]
[1749009696134,1.8349,2629.2,2629.1,0.76021]
[1749009699842,1.8349,2629.2,2629.0,0.76021]
[1749009700040,1.8349,2629.2,2629.0,0.76022]
[1749009700437,1.8349,2629.2,2628.8,5.236]
[1749009700638,1.8349,2629.2,2629.1,0.76021]
[1749009701143,1.8349,2629.2,2629.0,0.76023]
[1749009701438,1.2802,2629.1,2629.0,0.76023]
[1749009702234,2.27521212,2629.1,2629.0,0.76023]
[1749009703038,0.99501212,2629.1,2629.0,0.76023]
[1749009704645,0.6188,2629.2,2629.1,0.76021]
[1749009704844,2.92133739,2629.2,2629.1,0.76021]
[1749009706241,2.92133739,2629.2,2629.0,0.76022]
[1749009706441,0.99553739,2629.1,2629.0,0.76022]
[1749009708539,0.6188,2629.2,2629.1,0.76021]
[1749009708845,1.61405957,2629.2,2629.1,0.76021]
[1749009709044,1.61405957,2629.2,2629.1,0.06704602]
[1749009709247,2.92925957,2629.2,2629.1,0.06704602]
[1749009709433,2.92925957,2629.2,2629.1,0.82725602]
[1749009710041,2.92925957,2629.2,2629.1,0.76021]
[1749009710845,6.13705957,2629.2,2629.1,0.76021]
[1749009711446,4.20305957,2629.2,2629.1,0.76021]
[1749009712649,4.20335267,2629.2,2629.1,0.76021]
[1749009713046,0.99555267,2629.2,2629.1,0.76021]
[1749009716552,0.99594576,2629.2,2629.1,0.76021]
[1749009717254,4.20374576,2629.2,2629.1,0.76021]
[1749009720556,4.20440999,2629.2,2628.8,5.236]
[1749009720744,2.94170999,2629.1,2628.8,0.665]
[1749009720949,2.31090999,2629.0,2628.8,0.665]
[1749009721157,0.99660999,2628.9,2628.8,1.42528]
[1749009722957,1.3143,2629.0,2628.9,0.76027]
[1749009723154,2.31150528,2629.0,2628.9,0.76027]
[1749009726057,0.99720528,2629.0,2628.9,0.76027]
[1749009726255,1.2013,2629.1,2629.0,0.76024]
[1749009726959,2.464,2629.1,2629.0,0.76024]
[1749009727253,2.464,2629.1,2628.8,0.665]
[1749009727458,2.464,2629.1,2629.0,0.76024]
[1749009729360,2.464,2629.1,2628.9,0.76025]
[1749009729658,3.22421,2629.1,2628.9,0.76025]
[1749009729863,2.26707681,2629.0,2628.9,0.76025]
[1749009730657,2.26701925,2629.0,2628.9,0.76025]
[1749009730956,2.26701925,2629.0,2628.9,0.76027]
[1749009731153,2.26701925,2629.0,2628.4,4.5448]
[1749009731354,0.76034,2628.7,2628.5,1.37968]
[1749009731556,0.99671925,2628.6,2628.5,1.37969]
[1749009731753,1.59991925,2628.6,2628.5,1.37969]
[1749009731959,1.59991925,2628.6,2628.5,0.76039]
[1749009733353,0.99671925,2628.6,2628.5,0.76039]
[1749009733555,0.99706264,2628.8,2628.7,0.76033]
[1749009733758,0.99706589,2628.8,2628.7,0.76033]
[1749009733958,0.99706589,2628.8,2628.6,0.76034]
[1749009734158,0.99706589,2628.7,2628.6,0.76034]
[1749009734560,1.63146589,2628.7,2628.5,0.76038]
[1749009734862,0.99706589,2628.6,2628.5,0.76038]
[1749009735062,0.99696113,2628.6,2628.5,0.76038]
[1749009735265,0.99696113,2628.6,2628.2,5.1843]
[1749009735465,0.99696113,2628.5,2628.4,0.7604]
[1749009738067,0.99696113,2628.5,2628.1,0.06704602]
[1749009738266,0.99696113,2628.5,2628.1,0.82754602]
[1749009738267,3.2078,2628.3,2628.1,0.82754602]
[1749009738561,2.22486113,2628.2,2628.1,0.7605]
[1749009739062,1.2279,2628.2,2628.0,0.76051]
[1749009739267,1.00311815,2628.1,2628.0,0.76051]
[1749009742165,1.00311815,2628.1,2627.9,0.76054]
[1749009742466,1.00311815,2628.1,2628.0,0.76053]
[1749009742669,1.64071815,2628.1,2627.8,22.741]
[1749009742962,1.00311815,2628.0,2627.9,0.76056]
[1749009743161,1.00165523,2628.0,2627.9,0.76056]
[1749009746970,0.6376,2628.1,2628.0,0.76053]
[1749009747171,1.63969507,2628.1,2628.0,0.76053]
[1749009751078,1.63919021,2628.1,2628.0,0.76053]
[1749009754377,1.00159021,2628.1,2628.0,0.76053]
[1749009754677,1.00159021,2628.1,2628.0,0.82757602]
[1749009755077,1.00204451,2628.3,2628.2,0.76046]
[1749009755273,1.00204525,2628.3,2628.2,0.76046]
[1749009755989,1.00204525,2628.3,2628.1,1.38878]
[1749009756285,1.00204525,2628.2,2628.1,1.38878]
[1749009756481,1.00204525,2628.3,2628.1,1.38878]
[1749009756682,1.00204525,2628.2,2628.1,1.38878]
[1749009756876,1.00204525,2628.2,2628.1,0.6283]
[1749009757177,1.00204525,2628.2,2626.8,3.2078]
[1749009757178,16.17597242,2628.2,2626.8,3.2078]
[1749009757381,3.2078,2627.5,2626.9,0.6078]
[1749009757682,3.2078,2627.1,2626.5,3.2078]
[1749009757979,3.70657525,2627.0,2626.5,3.2078]
[1749009758286,1.00204525,2626.9,2626.5,3.2078]
[1749009758584,2.31744525,2626.8,2626.6,0.6078]
[1749009758790,0.99661392,2626.7,2626.6,0.6078]
[1749009759079,0.571,2626.9,2626.7,0.76089]
[1749009759282,0.99445978,2626.8,2626.6,1.36872]
[1749009759483,1.7946,2626.9,2626.6,1.36872]
[1749009759676,0.99378004,2626.8,2626.6,1.36872]
[1749009759876,1.7946,2626.9,2626.6,1.36872]
[1749009760078,0.99357473,2626.8,2626.6,1.36872]
[1749009760280,0.99357473,2626.8,2625.8,1.90288]
[1749009760281,0.76098,2626.5,2625.9,0.76113]
[1749009760581,0.99370743,2626.4,2625.8,5.2286]
[1749009760778,3.2078,2626.5,2625.8,5.2286]
[1749009760779,0.99370743,2626.3,2626.1,0.76106]
[1749009760980,1.8847,2626.7,2626.2,0.76105]
[1749009761180,3.2078,2626.4,2626.3,0.6686]
[1749009761487,0.99236983,2626.4,2626.3,0.76102]
[1749009761981,5.0925,2626.7,2626.4,0.76098]
[1749009762186,0.99026842,2626.6,2626.3,0.76101]
[1749009762482,0.99026842,2626.5,2626.4,0.76099]
[1749009762784,5.0925,2626.7,2626.6,0.76094]
[1749009762785,3.2078,2626.7,2626.6,0.76094]
[1749009762988,4.1976349,2626.7,2626.6,0.76094]
[1749009764290,0.571,2626.9,2626.7,0.76091]
[1749009764478,0.571,2626.9,2626.8,0.6356]
[1749009764792,0.571,2626.9,2626.8,1.39648]
[1749009765888,0.571,2626.9,2626.8,4.60428]
[1749009766478,0.571,2626.9,2626.8,9.60428]
[1749009769090,0.571,2626.9,2626.8,27.12828]
[1749009769390,0.571,2626.9,2626.8,22.12828]
[1749009769789,0.571,2626.9,2626.8,4.60428]
[1749009769984,0.571,2626.9,2626.8,26.75732602]
[1749009772685,0.571,2626.9,2626.8,4.67132602]
[1749009772992,0.571,2626.9,2626.8,26.75732602]
[1749009774796,0.571,2626.9,2626.8,4.67132602]
[1749009775291,0.571,2626.9,2626.8,26.75732602]
[1749009776495,0.571,2626.9,2626.8,6.02552602]
[1749009776696,0.571,2626.9,2626.8,23.54952602]
[1749009784099,0.571,2626.9,2626.8,23.54752602]
[1749009786600,0.571,2626.9,2626.8,6.02352602]
[1749009786891,0.571,2626.9,2626.8,23.54752602]
[1749009791500,1.5671803,2626.9,2626.8,23.54752602]
[1749009792899,1.5671803,2626.9,2626.8,26.75532602]
[1749009793094,1.5677381,2626.9,2626.8,26.75532602]
[1749009794498,1.5677381,2626.9,2626.8,9.23132602]
[1749009794700,1.5677381,2626.9,2626.8,26.75332602]
[1749009797102,1.56899266,2626.9,2626.8,26.75332602]
[1749009797495,3.2078,2627.9,2627.8,0.76059]
[1749009797699,3.2078,2627.9,2627.0,3.80409]
[1749009797700,1.8356,2628.0,2627.9,0.76056]
[1749009799301,0.00570776,2628.2,2628.1,0.7605]
[1749009799497,0.00570776,2628.2,2628.1,5.3205]
[1749009800304,0.00570776,2628.2,2628.1,8.5283]
[1749009801697,7.76e-06,2628.4,2628.3,0.76044]
[1749009802203,2.5451,2629.1,2629.0,0.76024]
[1749009802601,0.6603,2629.1,2629.0,0.76024]
[1749009803006,0.00570776,2629.3,2629.2,0.76018]
[1749009805602,7.76e-06,2629.3,2629.2,0.76018]
[1749009806208,7.76e-06,2629.3,2629.2,5.76018]
[1749009806609,1.2673,2630.2,2630.1,0.75992]
[1749009807311,3.2078,2630.6,2630.4,0.75984]
[1749009807713,3.2078,2630.6,2630.4,5.31884]
[1749009808008,0.00570776,2630.7,2630.4,5.31884]
[1749009810210,0.00570776,2630.7,2630.4,22.82684]
[1749009811109,0.75986,2630.4,2630.2,0.00570776]
[1749009811418,0.75987,2630.3,2630.2,0.00570776]
[1749009811610,1.9231,2630.4,2629.6,3.2078]
[1749009811611,6.9231,2630.4,2629.6,3.2078]
[1749009811815,0.76007,2629.6,2629.3,0.76014]
[1749009812009,2.02262,2629.5,2629.1,0.76019]
[1749009812306,3.2078,2629.2,2628.9,22.074]
[1749009812513,3.96791,2629.5,2629.1,0.76021]
[1749009812910,3.2078,2629.5,2629.2,0.76017]
[1749009813107,3.9679,2629.5,2629.1,0.76019]
[1749009813612,3.2078,2629.5,2629.0,0.76592776]
[1749009813911,3.2078,2629.5,2629.0,0.00570776]
[1749009814112,0.76014,2629.4,2629.1,0.76021]
[1749009814410,3.96791,2629.5,2629.1,0.76021]
[1749009814609,3.2078,2629.5,2629.2,0.76018]
[1749009814808,0.6298,2629.4,2629.2,0.76018]
[1749009815113,0.6298,2629.4,2629.2,0.76017]
[1749009815517,0.6298,2629.4,2629.0,0.00570776]
[1749009815518,0.6298,2629.4,2629.3,0.76015]
[1749009815711,0.6298,2629.4,2629.3,5.32415]
[1749009816012,0.6298,2629.4,2629.3,0.76015]
[1749009817223,0.00570776,2629.6,2629.5,0.7601]
[1749009819215,0.00570776,2629.6,2629.4,22.88711]
[1749009819417,0.00570776,2629.6,2629.5,0.7601]
[1749009820319,7.76e-06,2629.6,2629.5,2.03]
[1749009821816,7.76e-06,2629.6,2629.5,19.603]
[1749009822022,7.76e-06,2629.6,2629.5,0.7601]
[1749009822222,7.76e-06,2629.6,2629.5,22.8951]
[1749009822824,7.76e-06,2629.6,2629.5,27.8951]
[1749009824520,7.76e-06,2629.6,2629.5,22.8951]
[1749009825823,7.76e-06,2629.6,2629.5,27.8951]
[1749009826034,2.5902,2631.0,2630.6,0.75977]
[1749009826223,2.5902,2631.0,2630.6,0.75976]
[1749009826224,0.98844436,2630.9,2630.6,0.75976]
[1749009826421,2.30574436,2630.8,2630.6,0.75976]
[1749009826625,0.98844436,2630.7,2630.5,5.32279]
[1749009826827,0.98844436,2630.6,2630.4,0.75982]
[1749009827130,2.30574436,2630.5,2630.4,18.33382]
[1749009827322,2.30574436,2630.5,2630.4,22.89682]
[1749009828024,0.98844436,2630.5,2630.4,22.89682]
[1749009830031,0.98844436,2630.5,2630.4,0.75982]
[1749009830234,0.98844436,2630.5,2630.4,5.32282]
[1749009836033,0.00570776,2630.8,2630.7,0.75975]
[1749009836235,0.9957248,2630.8,2630.7,0.75975]
[1749009840041,0.99584106,2630.8,2630.7,0.75975]
[1749009842642,0.99498545,2630.8,2630.7,0.75975]
[1749009844440,0.99498545,2630.8,2630.7,5.34175]
[1749009845251,4.20278545,2630.8,2630.5,0.7598]
[1749009845439,2.92727769,2630.7,2630.6,0.75977]
[1749009846744,2.92800693,2630.7,2630.6,0.75977]
[1749009847445,1.938,2630.7,2630.6,0.75977]
[1749009848240,2.92896314,2630.7,2630.6,0.75977]
[1749009850041,2.92995221,2630.7,2630.6,0.75977]
[1749009850645,2.92995221,2630.7,2630.4,0.75982]
[1749009850836,0.99195221,2630.6,2630.5,0.7598]
[1749009851041,2.25205221,2630.6,2630.5,0.7598]
[1749009851935,0.99195221,2630.6,2630.5,0.7598]
[1749009855351,0.99195221,2630.6,2630.5,1.9762]
[1749009855941,0.99195221,2630.6,2630.5,0.7598]
[1749009856245,0.99195221,2630.6,2630.5,22.8938]
[1749009858650,0.00570776,2630.8,2630.7,0.75975]
[1749009858843,0.99961882,2630.8,2630.7,0.75975]
[1749009859445,0.99965505,2630.8,2630.7,0.75975]
[1749009862553,0.99965505,2630.8,2630.6,0.75977]
[1749009862746,0.00570776,2630.8,2630.7,5.34175]
[1749009862951,0.99917271,2630.8,2630.7,5.34175]
[1749009863546,0.99917271,2630.8,2630.4,3.8239]
[1749009863751,2.31106495,2630.7,2630.6,0.75978]
[1749009864852,2.31106495,2630.7,2630.6,5.34178]
[1749009866353,2.31106495,2630.7,2630.2,0.00570776]
[1749009866561,1.59626495,2630.6,2630.5,0.75981]
[1749009866851,2.9325111,2630.6,2630.5,0.75981]
[1749009870959,2.93198116,2630.6,2630.5,0.75981]
[1749009871255,2.93198116,2630.6,2630.3,5.34184]
[1749009871452,1.65748116,2630.5,2630.3,4.582]
[1749009871653,2.27078116,2630.4,2630.3,4.582]
[1749009871857,2.27078116,2630.4,2630.3,5.34186]
[1749009872855,2.27078116,2630.4,2630.2,0.00570776]
[1749009872856,5.47858116,2630.4,2630.2,0.00570776]
[1749009873155,0.99268116,2630.3,2630.2,0.00570776]
[1749009873458,2.27078116,2630.3,2630.2,0.00570776]
[1749009873753,2.26887512,2630.3,2630.2,0.00570776]
[1749009873951,3.02873512,2630.3,2630.2,0.00570776]
[1749009874650,2.03796,2630.3,2630.2,0.00570776]
[1749009874856,8.02843174,2630.3,2630.2,0.00570776]
[1749009875656,7.26857174,2630.3,2630.2,0.76559776]
[1749009875854,8.02843174,2630.3,2630.2,0.76559776]
[1749009876058,8.02843174,2630.3,2630.2,0.00570776]
[1749009877455,3.02843174,2630.3,2630.2,0.00570776]
[1749009878060,2.26857174,2630.3,2630.2,0.76559776]
[1749009878561,3.02843174,2630.3,2630.2,0.76559776]
[1749009878760,3.02676472,2630.3,2630.2,0.00570776]
[1749009879458,2.26690472,2630.3,2630.2,0.76559776]
[1749009882371,0.98880472,2630.3,2630.2,0.76559776]
[1749009882777,3.2078,2630.4,2630.3,0.75986]
[1749009882959,5.45947871,2630.4,2630.3,0.75986]
[1749009883275,6.21931871,2630.4,2630.2,0.76558776]
[1749009883463,0.99617871,2630.3,2630.2,0.76558776]
[1749009883864,0.99617871,2630.3,2630.2,5.33358776]
[1749009884863,0.99617871,2630.3,2630.2,6.59648776]
[1749009885870,3.2078,2630.7,2630.5,0.7598]
[1749009886066,0.64860776,2630.8,2630.6,0.6532]
[1749009886270,0.9956883,2630.7,2630.6,1.41298]
[1749009886571,0.00570776,2630.8,2630.7,0.75975]
[1749009887070,1.0013992,2630.8,2630.7,0.75975]
[1749009887373,1.0013992,2630.8,2630.6,5.98096]
[1749009887569,0.99569144,2630.7,2630.6,5.98096]
[1749009890376,0.99569144,2630.7,2630.6,6.04800602]
[1749009890678,0.00570776,2630.8,2630.7,0.75975]
[1749009890878,1.00158027,2630.8,2630.7,0.75975]
[1749009894778,1.00283249,2630.8,2630.7,0.75975]
[1749009898677,0.00570776,2630.8,2630.7,0.75975]
[1749009899287,1.00270162,2630.8,2630.7,0.75975]
[1749009901478,1.0030247,2630.8,2630.7,1.97595]
[1749009901673,0.00570776,2630.8,2630.7,1.97595]
[1749009901875,0.00570776,2630.8,2630.7,22.68675]
[1749009902084,0.76544776,2630.8,2630.6,5.2202]
[1749009902279,1.00293341,2630.8,2630.6,23.48296]
[1749009902591,0.99722565,2630.7,2630.6,23.48296]
[1749009903583,0.99722565,2630.7,2630.6,24.81356]
[1749009905389,0.00570776,2630.8,2630.7,0.75975]
[1749009905583,0.00570776,2630.8,2630.7,18.26175]
[1749009905976,1.00115307,2630.8,2630.7,18.26175]
[1749009909190,1.00115307,2630.8,2630.7,0.75975]
[1749009909390,0.00570776,2630.8,2630.7,22.81775]
[1749009909889,1.01013729,2630.8,2630.7,22.81775]
[1749009910090,0.00570776,2630.8,2630.7,22.81775]
[1749009910290,1.01036076,2630.8,2630.7,22.81775]
[1749009913393,1.0118736,2630.8,2630.7,22.81775]
[1749009915189,0.00570776,2630.8,2630.7,22.81775]
[1749009915590,1.01204987,2630.8,2630.7,22.81775]